bitfinex/quotes_SOLUSD_20240906
["timestamp","ask_amount","ask_price","bid_price","bid_amount"]
[1725624267272,27.6347,130.98,130.95,8.89494812]
[1725624267590,27.6347,130.98,130.96,8.89494812]
[1725624267789,27.6347,130.98,130.94,26.7282]
[1725624267966,27.6347,130.98,130.95,8.89512077]
[1725624268166,27.6347,130.98,130.96,8.89512077]
[1725624268393,27.6347,130.98,130.94,26.7282]
[1725624268692,27.6347,130.98,130.95,8.89494527]
[1725624268889,27.6347,130.98,130.96,8.89494527]
[1725624269195,27.6347,130.98,130.94,26.7282]
[1725624269383,27.6347,130.98,130.95,8.89674215]
[1725624269689,27.6347,130.98,130.94,26.7282]
[1725624269885,27.6347,130.98,130.95,8.89689006]
[1725624270061,27.6347,130.98,130.94,26.7282]
[1725624270263,27.6347,130.98,130.95,8.89652243]
[1725624270488,27.6347,130.98,130.94,26.7282]
[1725624270665,27.6347,130.98,130.95,8.89655003]
[1725624270993,27.6347,130.98,130.94,26.7282]
[1725624271402,27.6347,130.98,130.95,8.89654444]
[1725624271599,27.6347,130.98,130.95,7.6361]
[1725624271600,20.0,130.98,130.95,7.6361]
[1725624271765,27.6348,130.98,130.94,26.728]
[1725624271967,27.6348,130.98,130.95,8.89574731]
[1725624272166,27.6348,130.98,130.94,26.728]
[1725624272473,27.6348,130.98,130.95,8.89573136]
[1725624272667,27.6348,130.98,130.94,26.728]
[1725624272900,15.33,130.96,130.86,16.11411762]
[1725624273137,7.6384,130.92,130.87,16.54589119]
[1725624273292,7.6384,130.92,130.88,8.90509119]
[1725624273605,7.6384,130.92,130.87,7.6408]
[1725624273802,7.6395,130.9,130.86,7.6415]
[1725624274097,7.6395,130.9,130.87,8.88054627]
[1725624274394,23.8146,130.91,130.86,7.6415]
[1725624274691,7.6394,130.9,130.86,7.6415]
[1725624275200,23.8145,130.91,130.87,7.6411]
[1725624275989,16.1756,130.91,130.88,7.6405]
[1725624276168,16.1756,130.91,130.89,7.6399]
[1725624276368,7.6378,130.93,130.89,7.6399]
[1725624276687,20.0,130.92,130.9,7.6393]
[1725624276873,16.4539,130.94,130.9,7.6393]
[1725624277069,20.0,130.93,130.9,7.6393]
[1725624278078,20.0,130.93,130.89,19.0996]
[1725624278079,27.6378,130.93,130.89,19.0996]
[1725624278312,20.0,130.93,130.89,19.0996]
[1725624278889,20.0,130.93,130.9,7.6389]
[1725624279082,16.4539,130.94,130.91,7.6387]
[1725624280200,24.0912,130.94,130.89,26.7392]
[1725624280379,24.0912,130.94,130.89,19.0996]
[1725624281301,24.0912,130.94,130.9,7.6389]
[1725624281602,7.636,130.96,130.92,7.6382]
[1725624281776,20.0,130.95,130.93,19.0939]
[1725624281990,20.0,130.95,130.93,26.7314]
[1725624282195,20.0,130.95,130.93,19.0939]
[1725624282388,27.636,130.96,130.93,19.0939]
[1725624283275,27.636,130.96,130.92,7.638]
[1725624285912,27.636,130.96,130.93,7.6374]
[1725624285913,20.0,130.96,130.93,7.6374]
[1725624290920,27.636,130.96,130.92,26.7327]
[1725624291111,20.0,130.96,130.92,19.0949]
[1725624291415,20.0,130.96,130.9,7.6391]
[1725624291416,7.6376,130.94,130.9,7.6391]
[1725624291606,7.6368,130.95,130.91,7.6388]
[1725624291984,7.6371,130.94,130.9,7.6392]
[1725624294990,20.0,130.96,130.91,19.0969]
[1725624296393,27.6361,130.96,130.92,7.6378]
[1725624302030,20.0,130.96,130.93,26.7316]
[1725624302630,20.0,130.96,130.93,19.094]
[1725624302631,27.6359,130.96,130.93,19.094]
[1725624302811,7.6372,130.94,130.9,26.7362]
[1725624303332,39.0905,130.96,130.88,14.1601]
[1725624303494,7.64,130.89,130.88,6.5197]
[1725624303899,27.64,130.89,130.88,6.5197]
[1725624305317,7.6405,130.88,130.87,15.168]
[1725624305615,27.6405,130.88,130.87,15.168]
[1725624305827,27.6405,130.88,130.83,26.7514]
[1725624305828,7.6412,130.87,130.83,19.1081]
[1725624306144,20.0,130.88,130.78,6.38817214]
[1725624306145,20.0,130.86,130.78,6.38817214]
[1725624306357,20.0,130.86,130.78,16.52396024]
[1725624306358,7.6439,130.83,130.78,16.52396024]
[1725624306496,7.6439,130.83,130.78,8.87806024]
[1725624306699,7.6439,130.83,130.77,19.1171]
[1725624306925,20.0,130.82,130.77,19.1171]
[1725624307093,20.0,130.82,130.78,7.6463]
[1725624309130,20.0,130.82,130.77,19.1171]
[1725624309444,20.0,130.83,130.77,19.1171]
[1725624310098,20.0,130.83,130.79,7.6453]
[1725624310525,19.1022,130.88,130.81,7.6446]
[1725624310700,7.6421,130.86,130.81,7.6446]
[1725624310910,20.0,130.85,130.81,7.6446]
[1725624311224,27.6424,130.85,130.81,7.6446]
[1725624311996,27.6424,130.85,130.8,7.6451]
[1725624312225,7.6432,130.84,130.79,26.759]
[1725624312410,20.0,130.83,130.79,26.759]
[1725624312915,27.6435,130.83,130.79,26.759]
[1725624313802,20.0,130.83,130.78,7.6464]
[1725624314002,7.6443,130.82,130.77,7.6465]
[1725624314512,20.0,130.81,130.77,7.6465]
[1725624315031,20.0,130.81,130.76,19.1182]
[1725624315234,20.0,130.85,130.76,26.7656]
[1725624315437,7.6452,130.8,130.76,26.7656]
[1725624315640,27.6458,130.79,130.76,19.1182]
[1725624316242,20.0,130.79,130.76,26.7656]
[1725624316451,7.645,130.81,130.76,26.7656]
[1725624316730,20.0,130.8,130.78,7.6462]
[1725624317234,20.0,130.81,130.78,7.6462]
[1725624319625,7.6436,130.83,130.78,7.6462]
[1725624319626,20.0,130.82,130.78,7.6462]
[1725624320442,20.0,130.82,130.79,7.6458]
[1725624322422,27.6442,130.82,130.78,7.6462]
[1725624323746,7.6446,130.81,130.77,7.6469]
[1725624324046,27.6455,130.8,130.76,26.7656]
[1725624324916,20.0,130.8,130.77,7.6467]
[1725624327552,20.0,130.81,130.77,7.6467]
[1725624328057,27.6448,130.81,130.77,7.6467]
[1725624328854,20.0,130.81,130.77,7.6467]
[1725624329346,20.0,130.81,130.76,19.1182]
[1725624329525,7.6459,130.79,130.75,7.648]
[1725624329728,20.0,130.78,130.73,19.122]
[1725624330052,27.6465,130.78,130.74,7.6487]
[1725624330364,7.6474,130.77,130.73,26.7711]
[1725624330649,20.0,130.76,130.73,26.7711]
[1725624331747,20.0,130.76,130.74,7.6487]
[1725624331962,20.0,130.77,130.74,7.6487]
[1725624332126,20.0,130.78,130.74,7.6487]
[1725624332327,20.0,130.78,130.75,7.6481]
[1725624333452,20.0,130.78,130.76,7.6475]
[1725624333646,20.0,130.79,130.76,7.6475]
[1725624334738,20.0,130.79,130.75,19.12]
[1725624334739,7.6448,130.81,130.77,7.6469]
[1725624334939,7.6437,130.83,130.78,7.6464]
[1725624335250,7.6437,130.83,130.77,19.1168]
[1725624335251,7.6438,130.83,130.79,7.6458]
[1725624335456,7.6438,130.83,130.78,7.6462]
[1725624335654,7.6441,130.82,130.78,7.6462]
[1725624336452,20.0,130.81,130.78,7.6462]
[1725624341873,20.0,130.81,130.79,7.6457]
[1725624342060,20.0,130.82,130.79,7.6457]
[1725624344941,27.6441,130.82,130.79,7.6457]
[1725624345239,27.6441,130.82,130.77,19.1168]
[1725624345240,27.6441,130.82,130.78,7.6461]
[1725624345645,27.6441,130.82,130.79,7.6458]
[1725624346763,20.0,130.82,130.79,19.1143]
[1725624346975,21.12831174,130.87,130.79,19.1143]
[1725624347539,7.6426,130.85,130.81,7.6446]
[1725624347765,7.6422,130.86,130.82,7.6439]
[1725624348068,27.6423,130.85,130.82,7.6439]
[1725624348951,20.0,130.85,130.82,7.6439]
[1725624352567,20.0,130.85,130.83,13.12951937]
[1725624352766,20.0,130.86,130.83,7.6433]
[1725624353147,27.6418,130.86,130.83,7.6433]
[1725624353454,20.0,130.86,130.83,7.6433]
[1725624354169,27.6417,130.86,130.83,7.6433]
[1725624357177,27.6417,130.86,130.82,7.6435]
[1725624357673,7.6429,130.84,130.81,26.7556]
[1725624357995,20.0,130.83,130.81,26.7556]
[1725624358553,7.6419,130.86,130.82,7.6439]
[1725624358872,20.0,130.85,130.82,7.6439]
[1725624359961,27.6423,130.85,130.82,7.6439]
[1725624360379,27.6423,130.85,130.81,26.7556]
[1725624363463,20.0,130.85,130.82,7.644]
[1725624363660,20.0,130.85,130.84,7.6429]
[1725624363889,20.0,130.87,130.83,19.1087]
[1725624364195,20.0,130.87,130.84,7.6427]
[1725624364872,27.6412,130.87,130.83,26.752]
[1725624366784,7.6417,130.86,130.83,26.752]
[1725624366995,20.0,130.85,130.8,19.1118]
[1725624367201,7.6431,130.84,130.8,19.1118]
[1725624367416,20.0,130.83,130.8,19.1118]
[1725624367700,20.0,130.83,130.8,26.7569]
[1725624369777,27.6435,130.83,130.8,19.1118]
[1725624370871,20.0,130.83,130.8,19.1118]
[1725624371575,20.0,130.83,130.8,26.7569]
[1725624372081,20.0,130.83,130.81,7.6445]
[1725624372293,20.0,130.84,130.81,7.6445]
[1725624374491,27.6429,130.84,130.8,26.7568]
[1725624376417,20.0,130.84,130.83,7.6435]
[1725624377306,20.0,130.84,130.83,13.13173697]
[1725624377507,20.0,130.84,130.82,26.7539]
[1725624377771,20.0,130.85,130.83,7.6434]
[1725624378030,20.0,130.86,130.84,7.6426]
[1725624378221,20.0,130.87,130.84,7.6426]
[1725624382114,20.0,130.87,130.82,19.1101]
[1725624382115,27.6413,130.87,130.83,7.6434]
[1725624382338,27.6413,130.87,130.84,5.48381154]
[1725624382636,27.6413,130.87,130.83,7.6434]
[1725624382808,27.6413,130.87,130.84,5.48379459]
[1725624383008,27.6413,130.87,130.83,7.6434]
[1725624383310,27.6413,130.87,130.84,5.4841164]
[1725624383515,27.6413,130.87,130.83,7.6434]
[1725624383813,27.6413,130.87,130.84,5.48411536]
[1725624384033,27.6413,130.87,130.83,7.6434]
[1725624384331,27.6413,130.87,130.84,5.48372848]
[1725624384534,27.6413,130.87,130.83,7.6434]
[1725624385323,20.0,130.87,130.84,19.107]
[1725624385635,8.52479915,130.91,130.84,19.107]
[1725624386092,2.04509915,130.91,130.85,8.86606253]
[1725624386221,7.6417,130.86,130.82,7.6437]
[1725624386429,7.6417,130.86,130.83,8.86842023]
[1725624386655,7.6424,130.85,130.81,26.7553]
[1725624386804,20.0,130.84,130.81,26.7553]
[1725624387636,27.6431,130.84,130.78,25.5405]
[1725624387846,27.6431,130.84,130.79,16.52311927]
[1725624388165,27.6431,130.84,130.79,7.6453]
[1725624391010,27.6431,130.84,130.78,19.115]
[1725624391011,20.0,130.84,130.77,7.6468]
[1725624391618,7.6451,130.81,130.77,7.6468]
[1725624391841,20.0,130.8,130.77,7.6468]
[1725624392043,20.0,130.8,130.78,7.6463]
[1725624392416,20.0,130.82,130.78,7.6463]
[1725624393037,20.0,130.82,130.79,7.6457]
[1725624394316,20.0,130.82,130.77,19.1168]
[1725624394638,7.6452,130.8,130.77,19.1168]
[1725624395539,1.33189899,130.79,130.77,17.78489798]
[1725624397243,1.33189899,130.79,130.77,25.43169798]
[1725624398443,1.33189899,130.79,130.77,24.10004128]
[1725624401540,1.33189899,130.79,130.77,22.7683142]
[1725624404572,1.33189899,130.79,130.77,7.6468]
[1725624406057,1.33189899,130.79,130.77,26.7636]
[1725624406254,1.33189899,130.79,130.77,19.1168]
[1725624407629,1.33189899,130.79,130.77,17.78507106]
[1725624410667,1.33189899,130.79,130.74,21.2133191]
[1725624410954,1.33189899,130.79,130.74,19.1212]
[1725624412348,7.6471,130.77,130.74,19.1212]
[1725624412536,20.0,130.76,130.74,19.1212]
[1725624414455,20.0,130.76,130.74,17.78898645]
[1725624415426,2.01522359,130.8,130.74,17.78898645]
[1725624415628,16.0576,130.81,130.74,17.78898645]
[1725624415629,7.6465,130.78,130.74,25.43758645]
[1725624415842,1.33198478,130.76,130.75,7.6481]
[1725624419949,1.33198478,130.76,130.75,6.31618288]
[1725624421059,1.33198478,130.76,130.75,35.2018434]
[1725624422060,1.33198478,130.76,130.75,41.6881434]
[1725624422554,1.33198478,130.76,130.75,46.02896162]
[1725624425048,8.478e-05,130.76,130.75,53.48095962]
[1725624425351,22.7109,130.87,130.83,7.6434]
[1725624425652,15.0696,130.87,130.84,7.6424]
[1725624425950,1.3310146,130.86,130.83,7.6433]
[1725624426341,8.9727146,130.86,130.82,26.7538]
[1725624426675,20.0,130.85,130.82,26.7538]
[1725624428644,20.0,130.85,130.83,7.6434]
[1725624428947,21.3310146,130.86,130.83,7.6434]
[1725624429453,21.3310146,130.86,130.84,7.6428]
[1725624429824,21.3310146,130.86,130.84,6.31188667]
[1725624430039,21.3310146,130.86,130.85,7.6423]
[1725624430253,1.3310146,130.86,130.85,7.6423]
[1725624432050,1.3310146,130.86,130.84,26.7496]
[1725624433051,1.3310146,130.86,130.85,7.6423]
[1725624436046,1.3310146,130.86,130.85,14.1191]
[1725624436248,1.3310146,130.86,130.85,34.1191]
[1725624437140,1.3310146,130.86,130.85,14.1191]
[1725624437339,1.3310146,130.86,130.85,7.6423]
[1725624441131,1.46e-05,130.86,130.85,7.6423]
[1725624441354,15.9139,130.94,130.91,7.6387]
[1725624442139,23.551,130.94,130.9,26.7374]
[1725624442557,23.551,130.94,130.89,7.6398]
[1725624442558,27.6376,130.93,130.89,7.6398]
[1725624445566,1.33043925,130.92,130.89,7.6398]
[1725624445847,8.96863925,130.92,130.87,19.1017]
[1725624446248,8.96863925,130.92,130.87,26.7424]
[1725624446455,7.6389,130.91,130.87,26.7424]
[1725624446754,20.0,130.9,130.87,26.7424]
[1725624456166,20.0,130.9,130.84,57.3188]
[1725624456481,1.33043925,130.92,130.85,7.642]
[1725624456482,7.64,130.89,130.85,7.642]
[1725624457358,7.64,130.89,130.84,26.7487]
[1725624457684,7.6415,130.87,130.82,6.31258161]
[1725624457865,35.6474,130.86,130.82,6.31258161]
[1725624458065,35.6474,130.86,130.81,19.1104]
[1725624458372,7.6425,130.85,130.81,19.1104]
[1725624458583,20.0,130.84,130.81,19.1104]
[1725624458962,7.6425,130.85,130.81,19.1104]
[1725624459162,20.0,130.84,130.81,19.1104]
[1725624459761,27.643,130.84,130.8,7.6451]
[1725624460076,20.0,130.84,130.8,7.6451]
[1725624461106,20.0,130.84,130.81,7.6446]
[1725624461990,20.0,130.85,130.81,7.6446]
[1725624465893,1.33126367,130.84,130.81,7.6446]
[1725624466691,1.33126367,130.84,130.81,6.31328049]
[1725624467471,8.97426367,130.84,130.8,26.7574]
[1725624467681,20.0,130.83,130.8,26.7574]
[1725624469184,20.0,130.83,130.8,19.1124]
[1725624469990,20.0,130.83,130.8,26.7575]
[1725624476289,8.97426367,130.84,130.8,26.7575]
[1725624476602,20.0,130.83,130.8,26.7575]
[1725624480313,20.0,130.83,130.81,7.6446]
[1725624480599,21.33126367,130.84,130.8,19.1124]
[1725624480907,8.97456367,130.84,130.8,25.42622499]
[1725624481203,7.6441,130.82,130.78,7.6463]
[1725624481377,36.663,130.81,130.77,19.1162]
[1725624481581,36.663,130.81,130.76,7.6475]
[1725624481582,27.6453,130.8,130.76,7.6475]
[1725624484692,7.6459,130.79,130.75,7.648]
[1725624484997,20.0,130.78,130.75,6.31606023]
[1725624486183,1.33190473,130.77,130.74,26.7692]
[1725624486381,8.97890473,130.77,130.73,7.6492]
[1725624486592,20.0,130.76,130.73,7.6492]
[1725624487031,42.7223,130.76,130.72,7.6497]
[1725624487238,42.7223,130.76,130.69,7.6516]
[1725624487239,7.6494,130.73,130.69,7.6516]
[1725624487429,35.0747,130.76,130.68,19.1295]
[1725624488386,7.6498,130.73,130.68,26.7812]
[1725624488591,20.0,130.72,130.68,26.7812]
[1725624489318,20.0,130.72,130.68,26.7815]
[1725624490203,20.0,130.72,130.65,6.5458]
[1725624490423,20.0,130.74,130.64,34.7739]
[1725624490789,20.0,130.74,130.66,19.1325]
[1725624492395,7.65,130.72,130.67,7.6527]
[1725624492590,20.0,130.71,130.67,7.6527]
[1725624492826,15.1537,130.7,130.61,6.076]
[1725624492999,27.6517,130.69,130.64,7.6543]
[1725624493695,20.0,130.69,130.65,7.6539]
[1725624494205,20.0,130.69,130.66,7.6533]
[1725624496212,20.0,130.69,130.67,7.6527]
[1725624496898,20.0,130.69,130.68,7.6522]
[1725624497445,20.0,130.69,130.67,7.6527]
[1725624497911,20.0,130.69,130.68,7.6522]
[1725624498282,6.3065,130.73,130.69,7.6516]
[1725624498492,16.5746,130.74,130.7,7.6509]
[1725624498712,16.5746,130.74,130.67,15.74868516]
[1725624499510,14.2221,130.76,130.67,15.74868516]
[1725624499695,6.5741,130.76,130.73,7.6492]
[1725624499902,17.71400473,130.77,130.74,7.6482]
[1725624500104,20.0,130.76,130.74,7.6482]
[1725624500419,20.0,130.76,130.73,26.7717]
[1725624503512,20.0,130.76,130.73,19.1225]
[1725624503817,20.0,130.76,130.74,7.6487]
[1725624504419,17.71400473,130.77,130.75,7.6481]
[1725624504608,17.71400473,130.77,130.75,19.12]
[1725624505108,17.71400473,130.77,130.72,19.1237]
[1725624505526,16.3821,130.77,130.73,7.6489]
[1725624505831,20.0,130.76,130.73,7.6489]
[1725624506994,20.0,130.76,130.74,7.6487]
[1725624508716,20.0,130.76,130.73,7.6492]
[1725624509316,20.0,130.76,130.69,19.1281]
[1725624510701,7.6483,130.75,130.7,7.6509]
[1725624511004,20.0,130.74,130.7,7.6509]
[1725624511812,20.0,130.74,130.71,7.6503]
[1725624512118,20.0,130.74,130.72,7.6498]
[1725624512319,20.0,130.75,130.72,7.6498]
[1725624513509,20.0,130.75,130.71,7.6503]
[1725624514601,20.0,130.75,130.72,7.6497]
[1725624514902,20.0,130.75,130.73,7.6492]
[1725624515118,20.0,130.76,130.73,7.6492]
[1725624515430,13.7535,130.79,130.75,7.6481]
[1725624516213,1.33205084,130.78,130.74,7.6486]
[1725624516708,28.97855084,130.78,130.74,7.6486]
[1725624519228,21.33205084,130.78,130.74,7.6486]
[1725624519524,21.33205084,130.78,130.75,7.6479]
[1725624521027,21.33205084,130.78,130.75,19.12]
[1725624521329,1.33205084,130.78,130.76,7.6474]
[1725624521518,15.4902,130.8,130.77,7.647]
[1725624522409,7.6462,130.79,130.75,19.12]
[1725624522618,15.4902,130.8,130.75,19.12]
[1725624523128,20.0,130.79,130.75,19.12]
[1725624524323,1.33170031,130.78,130.77,7.6469]
[1725624525332,1.33170031,130.78,130.76,7.6474]
[1725624526133,1.33170031,130.78,130.77,7.647]
[1725624531540,1.33170031,130.78,130.77,23.40245296]
[1725624532110,20.0,130.83,130.8,26.7577]
[1725624532533,20.0,130.83,130.81,7.6446]
[1725624533345,20.0,130.83,130.8,26.7581]
[1725624533812,20.0,130.83,130.76,6.2065]
[1725624534017,20.0,130.83,130.79,7.6453]
[1725624534018,27.6436,130.83,130.79,7.6453]
[1725624534811,1.33149821,130.82,130.79,7.6453]
[1725624535308,1.33149821,130.82,130.79,6.313829]
[1725624536316,1.33149821,130.82,130.8,7.6451]
[1725624537709,1.33149821,130.82,130.79,7.6456]
[1725624538131,1.33149821,130.82,130.8,7.6451]
[1725624538441,1.33149821,130.82,130.8,26.7581]
[1725624539421,1.33149821,130.82,130.8,19.113]
[1725624540537,1.33149821,130.82,130.8,26.7582]
[1725624542043,1.33149821,130.82,130.8,18.113]
[1725624542364,27.6436,130.83,130.8,18.113]
[1725624543070,27.6436,130.83,130.8,25.7582]
[1725624543245,1.33141097,130.82,130.8,25.7582]
[1725624543750,1.33141097,130.82,130.81,7.6446]
[1725624545559,20.0,130.85,130.81,6.31338973]
[1725624545938,20.0,130.85,130.82,7.6439]
[1725624547225,20.0,130.85,130.82,19.1097]
[1725624547462,27.6424,130.85,130.8,7.645]
[1725624547670,20.0,130.85,130.79,26.7587]
[1725624547919,16.0432,130.82,130.76,19.1176]
[1725624548165,7.6475,130.77,130.73,26.7713]
[1725624548346,7.6475,130.77,130.73,19.1222]
[1725624548543,20.0,130.76,130.73,26.7714]
[1725624551400,20.0,130.76,130.74,7.6486]
[1725624551546,20.0,130.77,130.74,7.6486]
[1725624551742,20.0,130.77,130.73,26.7712]
[1725624552409,20.0,130.8,130.73,26.7712]
[1725624553353,20.0,130.8,130.73,25.7712]
[1725624553354,7.6471,130.77,130.73,25.7712]
[1725624553551,20.0,130.76,130.73,25.7712]
[1725624554170,44.1299,130.76,130.7,19.1268]
[1725624554471,44.1299,130.76,130.71,7.6501]
[1725624554679,44.1299,130.76,130.72,7.6498]
[1725624555578,1.33229438,130.75,130.72,7.6498]
[1725624555776,1.33229438,130.75,130.7,19.1268]
[1725624555777,1.33229438,130.75,130.71,7.6504]
[1725624556074,8.98059438,130.75,130.7,26.7777]
[1725624556273,20.0,130.74,130.69,4.29753645]
[1725624556489,50.7334,130.76,130.71,7.6504]
[1725624556680,1.3322059,130.73,130.71,7.6504]
[1725624556845,1.3322059,130.73,130.69,22.09368957]
[1725624556846,1.3322059,130.73,130.7,7.6509]
[1725624557054,20.0,130.74,130.7,7.6509]
[1725624557277,1.33238066,130.73,130.7,7.6509]
[1725624557592,1.33238066,130.73,130.69,29.74528957]
[1725624559254,1.33238066,130.73,130.7,7.651]
[1725624564363,1.33238066,130.73,130.71,19.1253]
[1725624565094,1.33238066,130.73,130.72,7.6499]
[1725624570280,1.33238066,130.73,130.71,19.1253]
[1725624570475,1.33238066,130.73,130.72,7.6499]
[1725624570976,1.33238066,130.73,130.71,26.7757]
[1725624571599,1.33238066,130.73,130.68,19.1306]
[1725624571984,1.33238066,130.73,130.71,7.6505]
[1725624572991,1.33238066,130.73,130.7,26.7783]
[1725624573379,1.33238066,130.73,130.7,19.1273]
[1725624574262,20.33138797,130.73,130.7,19.1273]
[1725624574683,20.0,130.73,130.7,26.7784]
[1725624577496,20.0,130.74,130.7,26.7784]
[1725624578490,27.6488,130.74,130.7,25.4464]
[1725624578693,7.6493,130.73,130.69,7.6515]
[1725624578899,20.0,130.72,130.68,7.6522]
[1725624580599,27.6499,130.72,130.68,7.6522]
[1725624580798,27.6499,130.72,130.67,26.7837]
[1725624581174,7.6506,130.71,130.67,26.7837]
[1725624581400,20.0,130.7,130.67,26.7837]
[1725624581574,43.558,130.7,130.66,7.6534]
[1725624583710,35.9068,130.7,130.66,7.6534]
[1725624586106,35.9068,130.7,130.67,7.6526]
[1725624586403,20.0,130.7,130.67,7.6526]
[1725624586614,20.0,130.71,130.68,19.1304]
[1725624586802,20.0,130.72,130.68,19.1304]
[1725624587632,20.0,130.72,130.68,26.7824]
[1725624588307,20.0,130.72,130.69,7.6516]
[1725624588690,20.0,130.72,130.68,19.1304]
[1725624588691,20.0,130.72,130.68,26.7825]
[1725624589015,20.0,130.72,130.69,7.6516]
[1725624589504,20.0,130.72,130.68,26.7824]
[1725624589751,23.0036,130.74,130.68,19.1304]
[1725624591007,20.0,130.73,130.69,7.6514]
[1725624594233,27.6496,130.73,130.69,7.6514]
[1725624594427,7.6499,130.72,130.68,26.7825]
[1725624594593,20.0,130.71,130.68,26.7825]
[1725624597815,20.0,130.72,130.68,26.7825]
[1725624598307,20.0,130.72,130.69,7.6515]
[1725624598701,20.0,130.73,130.69,7.6515]
[1725624601592,20.0,130.73,130.68,19.1304]
[1725624601798,20.0,130.73,130.68,17.79778953]
[1725624601799,7.6506,130.71,130.68,17.79778953]
[1725624601999,20.0,130.7,130.68,17.79778953]
[1725624602297,20.0,130.7,130.67,7.6524]
[1725624602715,20.0,130.7,130.66,7.6532]
[1725624603819,20.0,130.7,130.67,7.6527]
[1725624606314,20.0,130.7,130.69,7.6516]
[1725624606506,20.0,130.7,130.67,19.1316]
[1725624606507,20.0,130.7,130.68,7.6521]
[1725624606827,20.0,130.71,130.68,7.6521]
[1725624607060,27.6506,130.71,130.67,26.7843]
[1725624607324,20.0,130.71,130.64,28.01772031]
[1725624607530,7.6513,130.7,130.65,7.6535]
[1725624607701,20.0,130.69,130.65,7.6535]
[1725624608326,27.6517,130.69,130.65,7.6535]
[1725624610206,20.0,130.69,130.66,7.6534]
[1725624613012,20.0,130.69,130.67,7.6527]
[1725624613212,20.0,130.7,130.66,19.1332]
[1725624613428,7.6508,130.71,130.67,7.6526]
[1725624613669,20.0,130.7,130.67,7.6526]
[1725624617017,20.0,130.7,130.68,5.47970614]
[1725624617352,20.0,130.7,130.67,7.6526]
[1725624618127,20.0,130.7,130.66,19.1332]
[1725624618324,7.6517,130.69,130.67,5.48163828]
[1725624618631,7.6517,130.69,130.66,26.7866]
[1725624618838,7.6517,130.69,130.67,5.48206756]
[1725624619036,7.6517,130.69,130.66,26.7866]
[1725624619226,7.6517,130.69,130.67,5.48191665]
[1725624619542,7.6517,130.69,130.66,26.7866]
[1725624619747,7.6517,130.69,130.67,5.48167809]
[1725624619923,7.6523,130.68,130.65,7.6538]
[1725624620231,35.2505,130.67,130.64,11.94008544]
[1725624620448,35.2505,130.67,130.64,7.6545]
[1725624621321,7.6534,130.66,130.63,19.1371]
[1725624621535,7.6534,130.66,130.65,5.46871729]
[1725624621952,27.6534,130.66,130.65,5.46871729]
[1725624622143,27.6534,130.66,130.58,7.658]
[1725624622144,7.6559,130.62,130.58,7.658]
[1725624623444,7.6552,130.63,130.59,7.6575]
[1725624623749,20.0,130.62,130.59,7.6575]
[1725624624446,20.0,130.63,130.59,7.6575]
[1725624624814,20.0,130.63,130.6,5.46121238]
[1725624625623,20.0,130.63,130.59,7.6575]
[1725624627152,20.0,130.63,130.6,7.6567]
[1725624627528,27.6553,130.63,130.59,26.8003]
[1725624627917,7.6558,130.62,130.59,19.1431]
[1725624628646,27.6553,130.63,130.59,26.8006]
[1725624629445,7.6557,130.62,130.59,19.1431]
[1725624630552,27.6552,130.63,130.59,26.8004]
[1725624634645,27.6552,130.63,130.6,7.6569]
[1725624635438,27.6552,130.63,130.59,26.8004]